bitfinex/quotes_BTCUSD_20250910
["timestamp","ask_amount","ask_price","bid_price","bid_amount"]
[1757488951684,0.00011081,112130.0,112120.0,2.13214044]
[1757488952103,0.00011081,112130.0,112120.0,1.98282044]
[1757488952314,0.00011081,112130.0,112120.0,2.13210044]
[1757488952514,0.00011081,112130.0,112120.0,1.98282044]
[1757488952718,0.00011081,112130.0,112120.0,2.13210044]
[1757488957485,0.00011081,112130.0,112120.0,2.05175991]
[1757488959478,0.00011081,112130.0,112120.0,2.16406921]
[1757488971356,5.659e-05,112130.0,112120.0,2.16406921]
[1757488972870,5.659e-05,112130.0,112120.0,2.23262921]
[1757488973938,0.00018005,112130.0,112120.0,2.23262921]
[1757488978326,0.00018005,112130.0,112120.0,2.08334921]
[1757488978522,0.00018005,112130.0,112120.0,2.23226921]
[1757488981520,9.153e-05,112130.0,112120.0,2.08334921]
[1757488981756,9.153e-05,112130.0,112120.0,2.23222921]
[1757488983590,9.153e-05,112130.0,112120.0,2.08334921]
[1757488983800,0.00536153,112130.0,112120.0,2.03316555]
[1757488983944,0.00224153,112130.0,112120.0,2.03316555]
[1757488984149,9.153e-05,112130.0,112120.0,2.03627555]
[1757488984494,9.153e-05,112130.0,112120.0,2.20825921]
[1757488984694,9.153e-05,112130.0,112120.0,2.23259921]
[1757488985301,9.153e-05,112130.0,112120.0,2.28259921]
[1757488985956,9.153e-05,112130.0,112120.0,2.23259921]
[1757488991383,0.00524153,112130.0,112120.0,2.20299921]
[1757488991592,0.00524153,112130.0,112120.0,2.03101555]
[1757488991771,0.00211153,112130.0,112120.0,2.03297555]
[1757488991976,0.00211153,112130.0,112120.0,2.03597555]
[1757488992392,9.153e-05,112130.0,112120.0,2.23203921]
[1757488995612,9.153e-05,112130.0,112120.0,2.28203921]
[1757488997308,1e-08,112130.0,112120.0,2.30716579]
[1757488998268,1e-08,112130.0,112120.0,2.35716579]
[1757488999832,0.0002,112140.0,112130.0,0.51836439]
[1757489000148,0.0002,112140.0,112130.0,1.1302077]
[1757489000505,0.0002,112150.0,112140.0,0.51834849]
[1757489000708,0.0002,112150.0,112140.0,1.62493872]
[1757489000843,0.0002,112150.0,112140.0,1.65397872]
[1757489001042,0.0002,112150.0,112140.0,1.48199506]
[1757489001295,0.00222,112150.0,112140.0,1.90579479]
[1757489001487,0.00222,112150.0,112140.0,1.90879479]
[1757489002104,0.00222,112150.0,112140.0,1.90579479]
[1757489002315,0.0002,112150.0,112140.0,2.08277845]
[1757489002739,0.0002,112150.0,112140.0,2.08477845]
[1757489002938,0.0002,112150.0,112140.0,1.91279479]
[1757489004112,0.0002,112150.0,112140.0,2.08477845]
[1757489004325,1e-08,112150.0,112140.0,2.10990503]
[1757489004525,1e-08,112150.0,112140.0,2.02956177]
[1757489004735,1e-08,112150.0,112140.0,2.14187107]
[1757489004941,1e-08,112150.0,112140.0,2.14183107]
[1757489005190,1e-08,112150.0,112140.0,1.98899107]
[1757489005405,0.0102,112180.0,112170.0,0.86226811]
[1757489005620,0.0103384,112180.0,112170.0,1.17192037]
[1757489005823,0.0103384,112180.0,112170.0,1.28119745]
[1757489006028,0.0103384,112180.0,112170.0,1.53235745]
[1757489006251,0.0103384,112180.0,112170.0,1.62775031]
[1757489006473,0.0154884,112180.0,112170.0,1.10590299]
[1757489006690,0.0154884,112180.0,112170.0,0.94458747]
[1757489006901,0.0154884,112180.0,112170.0,0.97885851]
[1757489007122,0.0154884,112180.0,112170.0,0.83001851]
[1757489007342,0.0154884,112180.0,112170.0,1.09342747]
[1757489007594,0.0154884,112180.0,112170.0,1.02931195]
[1757489007815,0.0154884,112180.0,112170.0,0.29734299]
[1757489008022,0.0154884,112180.0,112170.0,0.41939305]
[1757489008231,0.0154884,112180.0,112170.0,0.42339305]
[1757489008232,0.13005736,112180.0,112170.0,0.42339305]
[1757489008917,0.30834225,112180.0,112170.0,0.27255305]
[1757489009123,0.13005736,112180.0,112170.0,0.42143305]
[1757489009339,0.0154884,112180.0,112170.0,0.42143305]
[1757489009998,0.0154884,112180.0,112170.0,0.42243305]
[1757489011318,0.0154884,112180.0,112170.0,0.53666574]
[1757489012406,0.0154884,112180.0,112170.0,0.53862574]
[1757489012637,0.0123584,112180.0,112170.0,0.56270574]
[1757489013071,0.0123584,112180.0,112170.0,0.56570574]
[1757489013497,0.0123584,112180.0,112170.0,0.56270574]
[1757489013713,0.0154884,112180.0,112170.0,0.53666574]
[1757489014220,0.0154884,112180.0,112170.0,0.93666574]
[1757489016888,0.0154884,112180.0,112170.0,0.93674574]
[1757489017026,0.0154884,112180.0,112170.0,0.53674574]
[1757489020014,0.0154884,112180.0,112170.0,0.42225678]
[1757489020265,0.0154884,112180.0,112170.0,0.42221678]
[1757489021059,0.19377329,112180.0,112170.0,0.42221678]
[1757489021239,0.19377329,112180.0,112170.0,0.09491599]
[1757489021240,0.30834225,112180.0,112170.0,0.09491599]
[1757489021441,0.30834225,112180.0,112170.0,0.003]
[1757489022905,0.0123584,112180.0,112170.0,0.39507449]
[1757489023120,0.0123584,112180.0,112170.0,0.41700574]
[1757489023508,0.0123584,112180.0,112170.0,0.41402574]
[1757489024513,0.0123584,112180.0,112170.0,0.69945678]
[1757489024714,0.0153284,112180.0,112170.0,0.27321678]
[1757489026793,0.0123584,112180.0,112170.0,0.38986574]
[1757489027765,0.0153284,112180.0,112170.0,0.38986574]
[1757489029782,0.0123584,112180.0,112170.0,0.38986574]
[1757489030688,0.0123584,112180.0,112170.0,0.27529678]
[1757489030907,0.0123584,112180.0,112170.0,0.38986574]
[1757489030908,0.0153284,112180.0,112170.0,0.38986574]
[1757489032070,0.0123584,112180.0,112170.0,0.38986574]
[1757489032286,0.0123684,112180.0,112170.0,0.38986574]
[1757489032747,0.0103384,112180.0,112170.0,0.30243678]
[1757489032961,0.0103384,112180.0,112170.0,0.41700574]
[1757489033374,0.0103384,112180.0,112170.0,0.68650574]
[1757489033679,0.0123684,112180.0,112170.0,0.68352574]
[1757489033893,0.0153384,112180.0,112170.0,0.65728574]
[1757489034197,0.0153384,112180.0,112170.0,0.65936574]
[1757489034335,0.0123684,112180.0,112170.0,0.65936574]
[1757489034548,0.0123684,112180.0,112170.0,0.80844574]
[1757489035402,0.0123684,112180.0,112170.0,0.69387678]
[1757489035563,0.0123684,112180.0,112170.0,0.80844574]
[1757489036161,0.0123684,112180.0,112170.0,0.87256126]
[1757489037713,0.0153384,112180.0,112170.0,0.87256126]
[1757489038131,0.0123684,112180.0,112170.0,0.87256126]
[1757489038544,0.0123684,112180.0,112170.0,0.89569832]
[1757489038842,0.0123684,112180.0,112170.0,0.87252126]
[1757489040001,0.0103384,112180.0,112170.0,0.89966126]
[1757489040290,0.0123684,112180.0,112170.0,0.89668126]
[1757489040891,0.0123684,112180.0,112170.0,0.89966126]
[1757489041546,0.0103384,112180.0,112170.0,0.89966126]
[1757489042318,0.0103384,112180.0,112170.0,1.01423022]
[1757489042519,0.0103384,112180.0,112170.0,1.0206147]
[1757489042746,0.0103384,112180.0,112170.0,1.10085178]
[1757489043470,0.0103384,112180.0,112170.0,1.52764389]
[1757489043679,0.0103384,112180.0,112170.0,1.52564389]
[1757489044157,0.0103384,112180.0,112170.0,1.52764389]
[1757489045004,0.0103384,112180.0,112170.0,1.52664389]
[1757489045371,0.0103384,112180.0,112170.0,1.52864389]
[1757489047013,0.0103384,112180.0,112170.0,1.26205493]
[1757489047231,0.0103384,112180.0,112170.0,1.41395493]
[1757489047451,0.0103384,112180.0,112170.0,1.33371785]
[1757489048281,0.0103384,112180.0,112170.0,1.60321785]
[1757489049108,0.0103384,112180.0,112170.0,1.71778681]
[1757489049322,0.0103384,112180.0,112170.0,1.79802389]
[1757489052261,0.0103384,112180.0,112170.0,1.79794389]
[1757489055177,0.0103384,112180.0,112170.0,1.79594389]
[1757489055396,0.0103384,112180.0,112170.0,1.79894389]
[1757489055987,0.0103384,112180.0,112170.0,1.79694389]
[1757489056400,0.0103384,112180.0,112170.0,1.79994389]
[1757489059157,0.0103384,112180.0,112170.0,1.42196597]
[1757489059337,0.0103384,112180.0,112170.0,1.68573493]
[1757489059806,0.0123684,112180.0,112170.0,1.26813915]
[1757489060007,0.0123684,112180.0,112170.0,1.30122892]
[1757489060246,0.0103384,112180.0,112170.0,1.30122892]
[1757489060438,0.0155884,112180.0,112170.0,1.27059892]
[1757489060642,0.0155884,112180.0,112170.0,1.27259892]
[1757489060867,0.0155884,112180.0,112170.0,1.27171892]
[1757489061075,0.0155884,112180.0,112170.0,1.27371892]
[1757489061278,0.0155884,112180.0,112170.0,1.27171892]
[1757489061476,0.0123684,112180.0,112170.0,1.27171892]
[1757489061678,0.0123684,112180.0,112170.0,1.27371892]
[1757489063101,0.0103384,112180.0,112170.0,1.29926892]
[1757489066779,0.0103384,112180.0,112170.0,1.36778892]
[1757489067173,0.0103384,112180.0,112170.0,1.30367574]
[1757489068380,0.0103384,112180.0,112170.0,1.36097773]
[1757489071181,0.01007096,112180.0,112170.0,1.36097773]
[1757489074241,0.01007096,112180.0,112170.0,1.18910678]
[1757489074446,0.01007096,112180.0,112170.0,1.36097773]
[1757489075991,0.01007096,112180.0,112170.0,1.18910678]
[1757489076177,0.01532096,112180.0,112170.0,1.22544956]
[1757489076385,0.01532096,112180.0,112170.0,1.39732051]
[1757489076980,0.01479767,112180.0,112170.0,1.39732051]
[1757489077629,0.18666862,112180.0,112170.0,0.82548956]
[1757489077834,0.36495351,112180.0,112170.0,0.33842956]
[1757489078034,0.36495351,112180.0,112170.0,0.42325678]
[1757489078194,0.19308256,112180.0,112170.0,0.42325678]
[1757489078395,0.19308256,112180.0,112170.0,0.59512773]
[1757489078619,0.19308256,112180.0,112170.0,0.42325678]
[1757489081200,0.19308256,112180.0,112170.0,0.59512773]
[1757489082647,0.01157767,112180.0,112170.0,0.59725773]
[1757489082845,0.00954767,112180.0,112170.0,0.62531773]
[1757489083259,0.00954767,112180.0,112170.0,0.68953051]
[1757489083690,0.00954767,112180.0,112170.0,0.95903051]
[1757489083931,0.18990256,112180.0,112170.0,0.95595051]
[1757489084174,0.01161767,112180.0,112170.0,0.89173773]
[1757489084627,0.01161767,112180.0,112170.0,0.89169773]
[1757489085512,0.01467767,112180.0,112170.0,0.89169773]
[1757489085802,0.01467767,112180.0,112170.0,0.57082678]
[1757489086018,0.01467767,112180.0,112170.0,0.89169773]
[1757489086227,0.01161767,112180.0,112170.0,0.89477773]
[1757489086893,0.19296256,112180.0,112170.0,0.54371678]
[1757489087098,0.19296256,112180.0,112170.0,0.86458773]
[1757489087934,0.36483351,112180.0,112170.0,0.69267678]
[1757489089734,0.36483351,112180.0,112170.0,0.54371678]
[1757489089978,0.36483351,112180.0,112170.0,0.69267678]
[1757489090770,0.18654862,112180.0,112170.0,0.69267678]
[1757489090979,0.01467767,112180.0,112170.0,0.69267678]
[1757489091182,0.19296256,112180.0,112170.0,0.69267678]
[1757489092390,0.19296256,112180.0,112170.0,0.86454773]
[1757489093042,0.01161767,112180.0,112170.0,0.89165773]
[1757489093257,0.00954767,112180.0,112170.0,0.89473773]
[1757489093457,0.01467767,112180.0,112170.0,0.86667773]
[1757489094276,0.19296256,112180.0,112170.0,0.86667773]
[1757489095228,0.00954767,112180.0,112170.0,0.86975773]
[1757489095446,0.00954767,112180.0,112170.0,0.89473773]
[1757489096197,0.01161767,112180.0,112170.0,0.95895051]
[1757489096406,0.01467767,112180.0,112170.0,0.95587051]
[1757489096922,0.01161767,112180.0,112170.0,0.78399956]
[1757489097174,0.01161767,112180.0,112170.0,0.95587051]
[1757489097444,0.01161767,112180.0,112170.0,0.95895051]
[1757489097653,0.19296256,112180.0,112170.0,0.57850877]
[1757489097896,0.19296256,112180.0,112170.0,0.93081051]
[1757489098557,0.01467767,112180.0,112170.0,0.93081051]
[1757489098809,0.01467767,112180.0,112170.0,0.75893956]
[1757489099020,0.01467767,112180.0,112170.0,0.93081051]
[1757489100269,0.01467767,112180.0,112170.0,0.78193051]
[1757489100475,0.00954767,112180.0,112170.0,0.95883051]
[1757489102344,0.00954767,112180.0,112170.0,0.78695956]
[1757489102559,0.19296256,112180.0,112170.0,0.92864051]
[1757489104214,0.19296256,112180.0,112170.0,0.77980051]
[1757489104417,0.19296256,112180.0,112170.0,0.92860051]
[1757489104938,0.19296256,112180.0,112170.0,0.77980051]
[1757489105288,0.19296256,112180.0,112170.0,0.92860051]
[1757489105688,0.19296256,112180.0,112170.0,0.65910051]
[1757489107183,0.00954767,112180.0,112170.0,0.68929051]
[1757489107831,0.01161767,112180.0,112170.0,0.68929051]
[1757489108044,0.18990256,112180.0,112170.0,0.68629051]
[1757489108344,0.18990256,112180.0,112170.0,0.51441956]
[1757489108604,0.18990256,112180.0,112170.0,0.68629051]
[1757489108605,0.19296256,112180.0,112170.0,0.68629051]
[1757489110376,0.18990256,112180.0,112170.0,0.68629051]
[1757489110958,0.18990256,112180.0,112170.0,0.53741051]
[1757489111192,0.18990256,112180.0,112170.0,0.68621051]
[1757489111416,0.36491351,112180.0,112170.0,0.48722956]
[1757489111901,0.18990256,112180.0,112170.0,0.48939956]
[1757489112108,0.18783256,112180.0,112170.0,0.51208956]
[1757489112265,0.18783256,112180.0,112170.0,0.68712051]
[1757489112874,0.18978256,112180.0,112170.0,0.68712051]
[1757489113438,0.19292256,112180.0,112170.0,0.48296972]
[1757489113667,0.18978256,112180.0,112170.0,0.48296972]
[1757489114254,0.18978256,112180.0,112170.0,0.66127051]
[1757489114805,0.36479351,112180.0,112170.0,0.48939956]
[1757489115007,0.18978256,112180.0,112170.0,0.48939956]
[1757489115416,0.36479351,112180.0,112170.0,0.48722956]
[1757489116082,0.19292256,112180.0,112170.0,0.48722956]
[1757489116235,0.36479351,112180.0,112170.0,0.48722956]
[1757489116455,0.36479351,112180.0,112170.0,0.48718956]
[1757489117200,0.19292256,112180.0,112170.0,0.48718956]
[1757489117503,0.36479351,112180.0,112170.0,0.48718956]
[1757489118215,0.18978256,112180.0,112170.0,0.48935956]
[1757489118348,0.00954767,112180.0,112170.0,0.68708051]
[1757489118971,0.01149767,112180.0,112170.0,0.68708051]
[1757489119184,0.18978256,112180.0,112170.0,0.68392051]
[1757489120845,0.18978256,112180.0,112170.0,0.51204956]
[1757489121054,0.18783256,112180.0,112170.0,0.68708051]
[1757489121263,0.00954767,112180.0,112170.0,0.68708051]
[1757489125684,0.00954767,112180.0,112170.0,0.51520956]
[1757489125885,0.00954767,112180.0,112170.0,1.08708051]
[1757489126958,0.00954767,112180.0,112170.0,0.91520956]
[1757489127171,0.00954767,112180.0,112170.0,1.08708051]
[1757489128173,0.00954767,112180.0,112170.0,0.91520956]
[1757489128431,0.00954767,112180.0,112170.0,1.0298065]
[1757489129898,0.00954767,112180.0,112170.0,0.91520956]
[1757489130046,0.00954767,112180.0,112170.0,1.0298065]
[1757489133593,0.01463767,112180.0,112170.0,0.76328956]
[1757489133793,0.12923461,112180.0,112170.0,0.88770956]
[1757489133995,0.01463767,112180.0,112170.0,0.88770956]
[1757489134222,0.01463767,112180.0,112170.0,0.88987956]
[1757489134432,0.01463767,112180.0,112170.0,0.48987956]
[1757489134630,0.01149767,112180.0,112170.0,0.48987956]
[1757489135040,0.01149767,112180.0,112170.0,0.51256956]
[1757489135253,0.00954767,112180.0,112170.0,0.51572956]
[1757489136784,0.01149767,112180.0,112170.0,0.51572956]
[1757489137585,0.01149767,112180.0,112170.0,0.36644956]
[1757489137795,0.01149767,112180.0,112170.0,0.51572956]
[1757489138255,0.01149767,112180.0,112170.0,0.51568956]
[1757489138458,0.01149767,112180.0,112170.0,0.91568956]
[1757489139095,0.00954767,112180.0,112170.0,0.91568956]
[1757489140971,0.01149767,112180.0,112170.0,0.91568956]
[1757489141173,0.00954767,112180.0,112170.0,0.91568956]
[1757489141625,0.00954767,112180.0,112170.0,1.0302865]
[1757489142380,0.00954767,112180.0,112170.0,0.91568956]
[1757489144653,0.01158767,112180.0,112170.0,0.91568956]
[1757489145238,0.00954767,112180.0,112170.0,0.91568956]
[1757489146099,0.00954767,112180.0,112170.0,0.76644956]
[1757489146344,0.00954767,112180.0,112170.0,0.91556956]
[1757489146842,0.01158767,112180.0,112170.0,0.91556956]
[1757489148257,0.01158767,112180.0,112170.0,0.76328956]
[1757489148461,0.01464767,112180.0,112170.0,0.88971956]
[1757489148834,0.01158767,112180.0,112170.0,0.88971956]
[1757489150663,0.01158767,112180.0,112170.0,0.91324956]
[1757489150864,0.01158767,112180.0,112170.0,0.91634956]
[1757489151899,0.01158767,112180.0,112170.0,0.91316956]
[1757489152111,0.42212644,112180.0,112170.0,0.06821278]
[1757489152315,0.19293256,112180.0,112170.0,0.18230079]
[1757489152520,0.42212644,112180.0,112170.0,0.18230079]
[1757489152719,0.44892509,112180.0,112170.0,0.004]
[1757489153205,0.44892509,112180.0,112170.0,0.002]
[1757489153206,0.59800509,112180.0,112170.0,0.002]
[1757489153408,0.44892509,112180.0,112170.0,0.004]
[1757489153583,0.59800509,112180.0,112170.0,0.004]
[1757489153950,0.59800509,112180.0,112170.0,0.002]
[1757489154261,0.6069934,112180.0,112170.0,0.002]
[1757489154721,0.37779952,112180.0,112170.0,0.003]
[1757489154928,0.6069934,112180.0,112170.0,0.003]
[1757489158056,0.4579134,112180.0,112170.0,0.003]
[1757489158276,0.6069534,112180.0,112170.0,0.18130079]
[1757489159639,0.4579134,112180.0,112170.0,0.18130079]
[1757489159840,0.16503157,112180.0,112170.0,0.18130079]
[1757489160042,0.31407157,112180.0,112170.0,0.18130079]
[1757489160396,0.42866851,112180.0,112170.0,0.18130079]
[1757489160595,0.6069534,112180.0,112170.0,0.18130079]
[1757489160832,0.19048632,112180.0,112170.0,0.18345079]
[1757489161044,0.30202326,112180.0,112170.0,0.21008079]
[1757489161249,0.30202326,112180.0,112170.0,0.20698079]
[1757489161453,0.30508326,112180.0,112170.0,0.18345079]
[1757489162455,0.30504326,112180.0,112170.0,0.18345079]
[1757489162868,0.30504326,112180.0,112170.0,0.18130079]
[1757489163498,0.48332815,112180.0,112170.0,0.18130079]
[1757489164116,0.59792509,112180.0,112170.0,0.18130079]
[1757489165475,0.60672773,112180.0,112170.0,0.18130079]
[1757489166544,0.49213079,112180.0,112170.0,0.18130079]
[1757489167538,0.48907079,112180.0,112170.0,0.18345079]
[1757489167765,0.48907079,112180.0,112170.0,0.21008079]
[1757489168206,0.48907079,112180.0,112170.0,0.20698079]
[1757489168433,0.33126815,112180.0,112170.0,0.20698079]
[1757489168679,0.15298326,112180.0,112170.0,0.20698079]
[1757489168901,0.03838632,112180.0,112170.0,0.21008079]
[1757489169120,0.30194326,112180.0,112170.0,0.21008079]
[1757489170236,0.03838632,112180.0,112170.0,0.21008079]
[1757489170464,0.30194326,112180.0,112170.0,0.21008079]
[1757489171153,0.18734632,112180.0,112170.0,0.21008079]
[1757489171365,0.30194326,112180.0,112170.0,0.21008079]
[1757489171807,0.30194326,112180.0,112170.0,0.20698079]
[1757489172714,0.03634632,112180.0,112170.0,0.41651372]
[1757489172927,0.03634632,112180.0,112170.0,0.30191678]
[1757489175201,0.03634632,112180.0,112170.0,0.41651372]
[1757489175415,0.00954767,112180.0,112170.0,0.4807265]
[1757489175616,0.00954767,112180.0,112170.0,1.2207265]
[1757489175828,0.00954767,112180.0,112170.0,1.15651372]
[1757489176057,0.00954767,112180.0,112170.0,1.22067407]
[1757489176256,0.00954767,112180.0,112170.0,1.24746736]
[1757489176495,0.00954767,112180.0,112170.0,1.24546736]
[1757489176861,0.00954767,112180.0,112170.0,1.24746736]
[1757489177062,0.00954767,112180.0,112170.0,1.24646736]
[1757489177279,0.00954767,112180.0,112170.0,1.18230701]
[1757489177679,0.00954767,112180.0,112170.0,1.18430701]
[1757489178115,0.00954767,112180.0,112170.0,1.24844027]
[1757489178730,0.00954767,112180.0,112170.0,1.18430701]
[1757489178949,0.00954767,112180.0,112170.0,1.29890395]
[1757489179092,0.00954767,112180.0,112170.0,1.36302398]
[1757489179508,0.00954767,112180.0,112170.0,1.43050826]
[1757489179897,0.00954767,112180.0,112170.0,1.36638823]
[1757489180093,0.00954767,112180.0,112170.0,1.43049412]
[1757489181399,0.00954767,112180.0,112170.0,1.36638823]
[1757489183173,0.00954767,112180.0,112170.0,1.57929565]
[1757489183874,0.00954767,112180.0,112170.0,1.57729565]
[1757489184203,0.00954767,112180.0,112170.0,1.57829565]
[1757489184581,0.00954767,112180.0,112170.0,1.58129565]
[1757489187411,0.00954767,112180.0,112170.0,1.85079565]
[1757489188492,0.00954767,112180.0,112170.0,1.96527079]
[1757489189102,0.00954767,112180.0,112170.0,1.81643079]
[1757489189250,0.00954767,112180.0,112170.0,1.96527079]
[1757489189861,0.00954767,112180.0,112170.0,1.96523079]
[1757489190874,0.00954767,112180.0,112170.0,1.99035737]
[1757489193694,0.00954767,112180.0,112170.0,1.96352408]
[1757489194164,0.00954767,112180.0,112170.0,1.89945666]
[1757489194423,0.00954767,112180.0,112170.0,1.75069666]
[1757489194634,0.00954767,112180.0,112170.0,1.96351011]
[1757489195035,0.00954767,112180.0,112170.0,1.89945666]
[1757489195459,0.00954767,112180.0,112170.0,1.92624731]
[1757489196388,0.00954767,112180.0,112170.0,2.00648439]
[1757489197728,0.00954767,112180.0,112170.0,1.85772439]
[1757489197941,0.00954767,112180.0,112170.0,2.00644439]
[1757489200752,0.00954767,112180.0,112170.0,1.85772439]
[1757489200878,0.00954767,112180.0,112170.0,2.00644439]
[1757489202505,0.00954767,112180.0,112170.0,1.85772439]
[1757489202712,0.00954767,112180.0,112170.0,1.48892879]
[1757489202915,0.00954767,112180.0,112170.0,1.6607633]
[1757489203094,0.00954767,112180.0,112170.0,1.38269265]
[1757489203298,0.00954767,112180.0,112170.0,1.45121265]
[1757489203957,0.00954767,112180.0,112170.0,1.62304716]
[1757489205183,0.00954767,112180.0,112170.0,1.45121265]
[1757489205383,0.00954767,112180.0,112170.0,1.30249265]
[1757489205586,0.01468767,112180.0,112170.0,0.62595386]
[1757489205793,0.01468767,112180.0,112170.0,0.93050758]
[1757489206526,0.01468767,112180.0,112170.0,0.92750758]
[1757489206867,0.01468767,112180.0,112170.0,0.92963758]
[1757489207074,0.01468767,112180.0,112170.0,0.92663758]
[1757489208034,0.01468767,112180.0,112170.0,0.92763758]
[1757489208458,0.01468767,112180.0,112170.0,0.92963758]
[1757489211170,0.01468767,112180.0,112170.0,0.75780307]
[1757489211430,0.19297256,112180.0,112170.0,0.24363599]
[1757489211650,0.19297256,112180.0,112170.0,0.42193678]
[1757489211651,0.36480707,112180.0,112170.0,0.42193678]
[1757489214185,0.01468767,112180.0,112170.0,0.42193678]
[1757489214388,0.01468767,112180.0,112170.0,0.59590129]
[1757489216874,0.01468767,112180.0,112170.0,0.42406678]
[1757489217076,0.01468767,112180.0,112170.0,0.59590129]
[1757489220938,0.00954767,112180.0,112170.0,0.62158129]
[1757489223195,0.00954767,112180.0,112170.0,0.89108129]
[1757489224161,0.01468767,112180.0,112170.0,0.71455129]
[1757489224459,0.01151767,112180.0,112170.0,0.86540129]
[1757489224634,0.01151767,112180.0,112170.0,0.89108129]
[1757489226890,0.00954767,112180.0,112170.0,0.89108129]
[1757489228186,0.00954767,112180.0,112170.0,0.95531758]
[1757489231657,0.00954767,112180.0,112170.0,1.35531758]
[1757489232596,0.00954767,112180.0,112170.0,0.95531758]
[1757489234630,0.00954767,112180.0,112170.0,0.80659758]
[1757489234837,0.00954767,112180.0,112170.0,0.95531758]
[1757489237137,0.00954767,112180.0,112170.0,1.35531758]
[1757489238196,0.00954767,112180.0,112170.0,1.20659758]
[1757489238355,0.00954767,112180.0,112170.0,1.35531758]
[1757489239742,0.00954767,112180.0,112170.0,0.95531758]
[1757489243163,0.00954767,112180.0,112170.0,1.35531758]
[1757489243844,0.00954767,112180.0,112170.0,0.95531758]
[1757489244808,0.00954767,112180.0,112170.0,0.80659758]
[1757489245009,0.01158767,112180.0,112170.0,0.95531758]
[1757489245510,0.01472767,112180.0,112170.0,0.75563307]
[1757489245734,0.01472767,112180.0,112170.0,0.92746758]
[1757489246700,0.01472767,112180.0,112170.0,0.75563307]
[1757489246911,0.01472767,112180.0,112170.0,0.92746758]
[1757489250545,0.01472767,112180.0,112170.0,0.75563307]
[1757489252805,0.01472767,112180.0,112170.0,0.48613307]
[1757489254604,0.01472767,112180.0,112170.0,0.48826307]
[1757489256668,0.01158767,112180.0,112170.0,0.48826307]
[1757489257334,0.01158767,112180.0,112170.0,0.60287406]
[1757489258341,0.01158767,112180.0,112170.0,0.33958307]
[1757489258588,0.00954767,112180.0,112170.0,0.55887519]
[1757489258802,1e-08,112190.0,112180.0,0.17828489]
[1757489259020,0.12907991,112200.0,112190.0,0.54339558]
[1757489259207,0.0002,112220.0,112210.0,0.29284822]
[1757489259481,0.0002,112220.0,112210.0,0.66610358]
[1757489259697,0.0002,112220.0,112210.0,0.71897016]
[1757489259698,0.00046124,112220.0,112210.0,0.71897016]
[1757489259903,0.00046124,112220.0,112210.0,0.83358115]
[1757489260105,0.00046124,112220.0,112210.0,0.84273657]
[1757489260314,0.00046124,112220.0,112210.0,1.00892999]
[1757489260519,0.00046124,112220.0,112210.0,1.15760999]
[1757489261417,0.00046124,112220.0,112210.0,1.18273657]
[1757489261614,0.00046124,112220.0,112210.0,0.95351459]
[1757489261821,0.00046124,112220.0,112210.0,1.18273657]
[1757489262721,0.00046124,112220.0,112210.0,1.58673657]
[1757489263268,0.00046124,112220.0,112210.0,1.5726372]
[1757489263658,0.00046124,112220.0,112210.0,1.70263355]
[1757489264491,0.00046124,112220.0,112210.0,1.63853418]
[1757489264662,0.00046124,112220.0,112210.0,1.66531352]
[1757489265311,0.00046124,112220.0,112210.0,1.66331352]
[1757489265541,0.00046124,112220.0,112210.0,1.66327352]
[1757489265750,0.00046124,112220.0,112210.0,1.66427352]
[1757489266200,0.00046124,112220.0,112210.0,1.66727352]
[1757489267291,0.00046124,112220.0,112210.0,1.51863352]
[1757489267914,0.00046124,112220.0,112210.0,1.66727352]
[1757489268122,0.00046124,112220.0,112210.0,1.51863352]
[1757489268374,0.00046124,112220.0,112210.0,1.66727352]
[1757489272145,0.00046124,112220.0,112210.0,1.43805154]
[1757489272358,0.00046124,112220.0,112210.0,1.66727352]
[1757489272532,0.00046124,112220.0,112210.0,1.55266253]
[1757489274520,1e-08,112230.0,112220.0,0.20334793]
[1757489274758,1e-08,112230.0,112220.0,0.86638689]
[1757489274959,1e-08,112230.0,112220.0,0.63716491]
[1757489275255,1e-08,112240.0,112220.0,1.37716491]
[1757489275398,1e-08,112240.0,112230.0,0.83762902]
[1757489275613,1e-08,112240.0,112230.0,0.83540146]
[1757489275783,1e-08,112240.0,112230.0,0.83749146]
[1757489276004,1e-08,112240.0,112230.0,0.94312002]
[1757489276379,0.15206032,112260.0,112250.0,0.25330029]
[1757489276560,0.15206032,112260.0,112250.0,1.06125826]
[1757489276757,0.15206032,112260.0,112250.0,1.08990826]
[1757489277110,0.15206032,112260.0,112250.0,0.96787518]
[1757489277511,0.15206032,112260.0,112250.0,1.11667518]
[1757489277924,0.15206032,112260.0,112250.0,0.96787518]
[1757489278135,0.15206032,112260.0,112250.0,1.11667518]
[1757489278926,0.15206032,112260.0,112250.0,1.51663518]
[1757489279713,0.15206032,112260.0,112250.0,1.24713518]
[1757489280246,0.15206032,112260.0,112250.0,1.25113518]
[1757489280461,0.15206032,112260.0,112250.0,1.32370493]
[1757489283846,0.15206032,112260.0,112250.0,1.20905394]
[1757489284048,0.15206032,112260.0,112250.0,1.20901394]
[1757489284698,0.15206032,112260.0,112250.0,1.32362493]
[1757489286137,0.15206032,112260.0,112250.0,1.01033394]
[1757489286354,0.15206032,112260.0,112250.0,1.49901394]
[1757489286561,0.15206032,112260.0,112250.0,1.09901394]
[1757489286912,0.15206032,112260.0,112250.0,1.49901394]
[1757489287115,0.15206032,112260.0,112250.0,1.49501394]
[1757489287529,0.15206032,112260.0,112250.0,1.34933394]
[1757489287750,0.15401032,112260.0,112250.0,0.86651637]
[1757489287951,0.15401032,112260.0,112250.0,0.70004044]
[1757489288527,0.15401032,112260.0,112250.0,0.70304044]
[1757489288879,0.15697032,112260.0,112250.0,0.4952897]
[1757489289245,0.15697032,112260.0,112250.0,0.4902897]
[1757489289451,0.15206032,112260.0,112250.0,0.60699069]
[1757489289684,0.15206032,112260.0,112250.0,0.63355069]
[1757489289924,0.15206032,112260.0,112250.0,0.63655069]
[1757489290134,0.15697032,112260.0,112250.0,0.3466997]
[1757489290336,0.15697032,112260.0,112250.0,0.4902897]
[1757489290478,0.15697032,112260.0,112250.0,0.45831069]
[1757489290710,0.15697032,112260.0,112250.0,0.60699069]
[1757489291300,0.15206032,112260.0,112250.0,0.63278069]
[1757489291526,0.15206032,112260.0,112250.0,0.48410069]
[1757489291731,0.15206032,112260.0,112250.0,0.63274069]
[1757489291945,0.15409032,112260.0,112250.0,0.62974069]
[1757489292372,0.15409032,112260.0,112250.0,0.63274069]
[1757489293044,0.15194197,112260.0,112250.0,0.63574069]
[1757489293247,0.15397197,112260.0,112250.0,0.63274069]
[1757489293399,0.15194197,112260.0,112250.0,0.63574069]
[1757489293796,0.15194197,112260.0,112250.0,0.70149398]
[1757489293998,0.15194197,112260.0,112250.0,0.67570398]
[1757489294227,0.15194197,112260.0,112250.0,0.70149398]
[1757489294397,0.15194197,112260.0,112250.0,0.55285398]
[1757489294601,0.15194197,112260.0,112250.0,0.70149398]
[1757489295287,0.15194197,112260.0,112250.0,0.58688299]
[1757489295491,0.15194197,112260.0,112250.0,0.70149398]
[1757489298370,0.15194197,112260.0,112250.0,0.72662056]
[1757489299220,0.15194197,112260.0,112250.0,0.66086727]
[1757489299765,0.15397197,112260.0,112250.0,0.50922727]